fUSD/lending_fUSD_20250119
["ID","MTS","AMOUNT","RATE_DAILY","PERIOD"]
[349562087,1737295866608,-500.0,0.00021369,2]
[349562088,1737295866618,-5881.8258836,0.000214,2]
[349562089,1737295866628,-194.32161878,0.00021478,2]
[349562090,1737295866638,-1474.56528626,0.00021489,2]
[349562091,1737295866647,-3000.0,0.0002149,2]
[349562092,1737295866656,-2110.0,0.000215,2]
[349562093,1737295866666,-561.38138195,0.00021505,2]
[349562094,1737295866675,-4494.59305678,0.0002152,2]
[349562095,1737295866684,-257.50674512,0.00021578,2]
[349562096,1737295866694,-1999.0,0.00021589,2]
[349562097,1737295866703,-1999.0,0.00021589,2]
[349562098,1737295866712,-1999.0,0.00021589,2]
[349562099,1737295866722,-1999.0,0.00021589,2]
[349562100,1737295866731,-1999.0,0.00021589,2]
[349562101,1737295866740,-1999.0,0.00021589,2]
[349562102,1737295866750,-1999.0,0.00021589,2]
[349562103,1737295866759,-1999.0,0.00021589,2]
[349562104,1737295866768,-1999.0,0.00021589,2]
[349562105,1737295866778,-1999.0,0.00021589,2]
[349562106,1737295866787,-1999.0,0.00021589,2]
[349562107,1737295866797,-1999.0,0.00021589,2]
[349562108,1737295866806,-1999.0,0.00021589,2]
[349562109,1737295866817,-1999.0,0.00021589,2]
[349562110,1737295866826,-1999.0,0.00021589,2]
[349562111,1737295866838,-1999.0,0.00021589,2]
[349562112,1737295866847,-1470.04736184,0.00021589,2]
[349562113,1737295866856,-18967.8590399,0.00021613,2]
[349562114,1737295866867,-152.0,0.00021635,4]
[349562115,1737295866876,-156.22,0.00021638,2]
[349562116,1737295866886,-500.0,0.00021643,2]
[349562117,1737295866895,-500.0,0.00021643,2]
[349562118,1737295866905,-500.0,0.00021643,2]
[349562119,1737295866914,-500.0,0.00021643,2]
[349562120,1737295866923,-500.0,0.00021643,2]
[349562121,1737295866934,-500.0,0.00021643,2]
[349562122,1737295866943,-500.0,0.00021643,2]
[349562123,1737295866954,-500.0,0.00021643,2]
[349562124,1737295866963,-500.0,0.00021643,2]
[349562125,1737295866973,-500.0,0.00021643,2]
[349562126,1737295866983,-500.0,0.00021643,2]
[349562127,1737295866994,-500.0,0.00021643,2]
[349562128,1737295867004,-500.0,0.00021643,2]
[349562129,1737295867013,-383.28999713,0.00021643,2]
[349562130,1737295867022,-500.0,0.00021643,2]
[349562131,1737295867036,-500.0,0.00021643,2]
[349562132,1737295867045,-500.0,0.00021643,2]
[349562133,1737295867055,-537.56,0.00021643,2]
[349562134,1737295867064,-500.0,0.00021643,2]
[349562135,1737295867074,-500.0,0.00021643,2]
[349562136,1737295867083,-500.0,0.00021643,2]
[349562137,1737295867092,-500.0,0.00021643,2]
[349562138,1737295867102,-500.0,0.00021643,2]
[349562139,1737295867111,-500.0,0.00021643,2]
[349562140,1737295867120,-500.0,0.00021643,2]
[349562141,1737295867130,-500.0,0.00021643,2]
[349562142,1737295867139,-979.7,0.00021643,2]
[349562143,1737295867148,-500.0,0.00021643,2]
[349562144,1737295867158,-500.0,0.00021643,2]
[349562145,1737295867167,-648.95,0.00021643,2]
[349562146,1737295867177,-824.661231,0.00021643,2]
[349562147,1737295867186,-500.0,0.00021643,2]
[349562148,1737295867196,-264.34926038,0.00021643,2]
[349562149,1737295867205,-500.0,0.00021643,2]
[349562150,1737295867214,-463.31505,0.00021643,2]
[349562151,1737295867228,-500.0,0.00021643,2]
[349562152,1737295867237,-500.0,0.00021643,2]
[349562153,1737295867247,-500.0,0.00021643,2]
[349562154,1737295867256,-593.71,0.00021643,2]
[349562155,1737295867266,-500.0,0.00021643,2]
[349562156,1737295867276,-500.0,0.00021643,2]
[349562157,1737295867288,-500.0,0.00021643,2]
[349562158,1737295867298,-562.68,0.00021643,2]
[349562159,1737295867307,-480.99528812,0.00021643,2]
[349562160,1737295867317,-500.0,0.00021643,2]
[349562161,1737295867326,-500.0,0.00021643,2]
[349562162,1737295867336,-500.0,0.00021643,2]
[349562163,1737295867345,-500.0,0.00021643,2]
[349562164,1737295867355,-500.0,0.00021643,2]
[349562165,1737295867365,-500.0,0.00021643,2]
[349562166,1737295867374,-500.0,0.00021643,2]
[349562167,1737295867383,-500.0,0.00021643,2]
[349562168,1737295867393,-598.03,0.00021643,2]
[349562169,1737295867403,-500.0,0.00021643,2]
[349562170,1737295867413,-500.0,0.00021643,2]
[349562171,1737295867423,-500.0,0.00021643,2]
[349562172,1737295867432,-500.0,0.00021643,2]
[349562173,1737295867442,-500.0,0.00021643,2]
[349562174,1737295867451,-500.0,0.00021643,2]
[349562175,1737295867460,-500.0,0.00021643,2]
[349562176,1737295867469,-500.0,0.00021643,2]
[349562177,1737295867479,-601.44,0.00021643,2]
[349562178,1737295867488,-339.2438751,0.00021643,2]
[349562179,1737295867497,-500.0,0.00021643,2]
[349562180,1737295867507,-500.0,0.00021643,2]
[349562181,1737295867517,-525.22,0.00021643,2]
[349562182,1737295867529,-500.0,0.00021643,2]
[349562183,1737295867538,-500.0,0.00021643,2]
[349562184,1737295867548,-500.0,0.00021643,2]
[349562185,1737295867557,-500.0,0.00021643,2]
[349562186,1737295867566,-500.0,0.00021643,2]
[349562187,1737295867579,-500.0,0.00021643,2]
[349562188,1737295867589,-500.0,0.00021643,2]
[349562189,1737295867599,-500.0,0.00021643,2]
[349562190,1737295867608,-500.0,0.00021643,2]
[349562191,1737295867618,-500.0,0.00021643,2]
[349562192,1737295867628,-500.0,0.00021643,2]
[349562193,1737295867637,-500.0,0.00021643,2]
[349562194,1737295867647,-624.0,0.00021643,2]
[349562195,1737295867656,-734.71,0.00021643,2]
[349562196,1737295867666,-580.69106398,0.00021643,2]
[349562197,1737295867675,-636.09,0.00021643,2]
[349562198,1737295867685,-738.52,0.00021643,2]
[349562199,1737295867695,-500.0,0.00021643,2]
[349562200,1737295867705,-500.0,0.00021643,2]
[349562201,1737295867715,-684.88,0.00021643,2]
[349562202,1737295867727,-500.0,0.00021643,2]
[349562203,1737295867737,-1247.32,0.00021643,2]
[349562204,1737295867747,-500.0,0.00021643,2]
[349562205,1737295867757,-500.0,0.00021643,2]
[349562206,1737295867766,-986.9,0.00021643,2]
[349562207,1737295867779,-2869.51,0.00021643,2]
[349562208,1737295867789,-500.0,0.00021643,2]
[349562209,1737295867799,-500.0,0.00021643,2]
[349562210,1737295867809,-500.0,0.00021643,2]
[349562211,1737295867822,-511.89,0.00021643,2]
[349562212,1737295867831,-547.55,0.00021643,2]
[349562213,1737295867841,-500.0,0.00021643,2]
[349562214,1737295867851,-500.0,0.00021643,2]
[349562215,1737295867861,-500.0,0.00021643,2]
[349562216,1737295867871,-500.0,0.00021643,2]
[349562217,1737295867880,-980.39,0.00021643,2]
[349562218,1737295867890,-1901.43,0.00021643,2]
[349562219,1737295867900,-574.45,0.00021643,2]
[349562220,1737295867910,-1217.08,0.00021643,2]
[349562221,1737295867920,-500.0,0.00021643,2]
[349562222,1737295867930,-500.0,0.00021643,2]
[349562223,1737295867941,-3718.9,0.00021643,2]
[349562224,1737295867951,-1895.82,0.00021643,2]
[349562225,1737295867960,-1772.87,0.00021643,2]
[349562226,1737295867970,-907.58,0.00021643,2]
[349562227,1737295867980,-500.0,0.00021643,2]
[349562228,1737295867990,-962.1,0.00021643,2]
[349562229,1737295868000,-611.5,0.00021643,2]
[349562230,1737295868011,-1081.13,0.00021643,2]
[349562231,1737295868021,-615.07,0.00021643,2]
[349562232,1737295868037,-1824.47,0.00021643,2]
[349562233,1737295868047,-1128.83,0.00021643,2]
[349562234,1737295868056,-1134.46,0.00021643,2]
[349562235,1737295868066,-779.59,0.00021643,2]
[349562236,1737295868075,-1057.43,0.00021643,2]
[349562237,1737295868085,-2511.83,0.00021643,2]
[349562238,1737295868094,-808.36,0.00021643,2]
[349562239,1737295868103,-500.0,0.00021643,2]
[349562240,1737295868113,-950.06,0.00021643,2]
[349562241,1737295868123,-1505.94,0.00021643,2]
[349562242,1737295868132,-500.0,0.00021643,2]
[349562243,1737295868141,-500.0,0.00021643,2]
[349562244,1737295868151,-1601.1,0.00021643,2]
[349562245,1737295868160,-1392.17,0.00021643,2]
[349562246,1737295868170,-1936.96,0.00021643,2]
[349562247,1737295868179,-913.05,0.00021643,2]
[349562248,1737295868189,-2265.47,0.00021643,2]
[349562249,1737295868198,-724.33,0.00021643,2]
[349562250,1737295868207,-418.35913601,0.00021643,2]
[349562251,1737295868217,-303.07813519,0.00021643,2]
[349562252,1737295868226,-1982.14,0.00021643,2]
[349562253,1737295868236,-500.0,0.00021643,2]
[349562254,1737295868245,-553.34,0.00021643,2]
[349562255,1737295868254,-151.0,0.00021643,2]
[349562256,1737295868265,-3330.96,0.00021643,2]
[349562257,1737295868274,-500.0,0.00021643,2]
[349562258,1737295868289,-771.48,0.00021643,2]
[349562259,1737295868298,-779.34,0.00021643,2]
[349562260,1737295868307,-1043.03,0.00021643,2]
[349562261,1737295868317,-500.0,0.00021643,2]
[349562262,1737295868326,-1370.63,0.00021643,2]
[349562263,1737295868335,-564.65,0.00021643,2]
[349562264,1737295868345,-3709.46,0.00021643,2]
[349562265,1737295868354,-502.23,0.00021643,2]
[349562266,1737295868363,-500.0,0.00021643,2]
[349562267,1737295868373,-500.0,0.00021643,2]
[349562268,1737295868382,-1640.85,0.00021643,2]
[349562269,1737295868392,-544.68,0.00021643,2]
[349562270,1737295868402,-1350.5,0.00021643,2]
[349562271,1737295868411,-797.87,0.00021643,2]
[349562272,1737295868421,-3651.14,0.00021643,2]
[349562273,1737295868430,-4438.25,0.00021643,2]
[349562274,1737295868440,-500.0,0.00021643,2]
[349562275,1737295868449,-500.0,0.00021643,2]
[349562276,1737295868458,-500.0,0.00021643,2]
[349562277,1737295868468,-759.5,0.00021643,2]
[349562278,1737295868477,-500.0,0.00021643,2]
[349562279,1737295868486,-2450.03,0.00021643,2]
[349562280,1737295868496,-892.16,0.00021643,2]
[349562281,1737295868506,-500.0,0.00021643,2]
[349562282,1737295868515,-501.18,0.00021643,2]
[349562283,1737295868525,-299.922979,0.00021643,2]
[349562284,1737295868540,-700.04,0.00021643,2]
[349562285,1737295868550,-299.922979,0.00021643,2]
[349562286,1737295868560,-723.03,0.00021643,2]
[349562287,1737295868570,-530.67,0.00021643,2]
[349562288,1737295868579,-2025.11,0.00021643,2]
[349562289,1737295868589,-864.92,0.00021643,2]
[349562290,1737295868599,-259.15,0.00021643,2]
[349562291,1737295868608,-759.68,0.00021643,2]
[349562292,1737295868617,-1553.11,0.00021643,2]
[349562293,1737295868627,-6815.31,0.00021643,2]
[349562294,1737295868637,-586.46,0.00021643,2]
[349562295,1737295868646,-939.47,0.00021643,2]
[349562296,1737295868655,-1310.9,0.00021643,2]
[349562297,1737295868665,-1177.09,0.00021643,2]
[349562298,1737295868675,-500.0,0.00021643,2]
[349562299,1737295868685,-1155.77,0.00021643,2]
[349562300,1737295868694,-500.0,0.00021643,2]
[349562301,1737295868704,-500.0,0.00021643,2]
[349562302,1737295868713,-2403.83,0.00021643,2]
[349562303,1737295868722,-866.62,0.00021643,2]
[349562304,1737295868732,-2276.55,0.00021643,2]
[349562305,1737295868742,-1028.52,0.00021643,2]
[349562306,1737295868751,-633.36,0.00021643,2]
[349562307,1737295868760,-727.12,0.00021643,2]
[349562308,1737295868769,-1083.84,0.00021643,2]
[349562309,1737295868778,-697.52,0.00021643,2]
[349562310,1737295868790,-500.0,0.00021643,2]
[349562311,1737295868799,-500.0,0.00021643,2]
[349562312,1737295868809,-1671.75,0.00021643,2]
[349562313,1737295868819,-872.62,0.00021643,2]
[349562314,1737295868830,-1470.37,0.00021643,2]
[349562315,1737295868840,-500.0,0.00021643,2]
[349562316,1737295868850,-2113.17,0.00021643,2]
[349562317,1737295868859,-669.95,0.00021643,2]
[349562318,1737295868868,-608.59,0.00021643,2]
[349562319,1737295868879,-6374.84,0.00021643,2]
[349562320,1737295868889,-595.58,0.00021643,2]
[349562321,1737295868898,-699.23,0.00021643,2]
[349562322,1737295868909,-538.06,0.00021643,2]
[349562323,1737295868919,-675.11,0.00021643,2]
[349562324,1737295868929,-946.85,0.00021643,2]
[349562325,1737295868939,-500.0,0.00021643,2]
[349562326,1737295868948,-535.65,0.00021643,2]
[349562327,1737295868958,-500.0,0.00021643,2]
[349562328,1737295868967,-798.35,0.00021643,2]
[349562329,1737295868977,-1273.57,0.00021643,2]
[349562330,1737295868987,-638.80458809,0.00021643,2]
[349562331,1737295868997,-500.0,0.00021643,2]
[349562332,1737295869006,-7239.41707945,0.000217,2]
[349562333,1737295869016,-278.95629,0.000217,2]
[349562334,1737295869069,-278.95629,0.000217,2]
[349562335,1737295869078,-242.560686,0.000217,2]
[349562336,1737295869088,-242.560686,0.000217,2]
[349562337,1737295869097,-182.510015,0.000217,2]
[349562338,1737295869107,-182.510015,0.000217,2]
[349562339,1737295869116,-151.0,0.000217,2]
[349562340,1737295869126,-151.0,0.000217,2]
[349562341,1737295869135,-9826.3428016,0.0002186,2]
[349562342,1737295869145,-151.0,0.0002186,2]
[349562343,1737295869153,-2000.0,0.0002188,2]
[349562344,1737295869163,-257.50674512,0.0002189,2]
[349562345,1737295869173,-800.0,0.000219,7]
[349562346,1737295869182,-7057.666172,0.00021902,2]
[349562347,1737295869192,-1000.0,0.0002191,2]
[349562348,1737295869201,-353.474197,0.00021917,2]
[349562349,1737295869211,-349.96070651,0.00021917,2]
[349562350,1737295869220,-500.0,0.00021917,2]
[349562351,1737295869229,-379.08761974,0.00021917,2]
[349562352,1737295869239,-500.0,0.00021917,2]
[349562353,1737295869248,-500.0,0.00021917,2]
[349562354,1737295869257,-500.0,0.00021917,2]
[349562355,1737295869267,-500.0,0.00021917,2]
[349562356,1737295869276,-500.0,0.00021917,2]
[349562357,1737295869290,-440.44012815,0.00021917,2]
[349562358,1737295869300,-500.0,0.00021917,2]
[349562359,1737295869309,-500.0,0.00021917,2]
[349562360,1737295869319,-500.0,0.00021917,2]
[349562361,1737295869328,-500.0,0.00021917,2]
[349562362,1737295869337,-500.0,0.00021917,2]
[349562363,1737295869347,-500.0,0.00021917,2]
[349562364,1737295869356,-500.0,0.00021917,2]
[349562365,1737295869367,-500.0,0.00021917,2]
[349562366,1737295869376,-537.56,0.00021917,2]
[349562367,1737295869387,-500.0,0.00021917,2]
[349562368,1737295869396,-500.0,0.00021917,2]
[349562369,1737295869406,-500.0,0.00021917,2]
[349562370,1737295869416,-500.0,0.00021917,2]
[349562371,1737295869426,-500.0,0.00021917,2]
[349562372,1737295869436,-500.0,0.00021917,2]
[349562373,1737295869447,-500.0,0.00021917,2]
[349562374,1737295869456,-500.0,0.00021917,2]
[349562375,1737295869467,-500.0,0.00021917,2]
[349562376,1737295869476,-500.0,0.00021917,2]
[349562377,1737295869486,-500.0,0.00021917,2]
[349562378,1737295869496,-500.0,0.00021917,2]
[349562379,1737295869505,-500.0,0.00021917,2]
[349562380,1737295869514,-500.0,0.00021917,2]
[349562381,1737295869523,-167.98462408,0.00021917,2]
[349562382,1737295869534,-500.0,0.00021917,2]
[349562383,1737295869543,-500.0,0.00021917,2]
[349562384,1737295869552,-500.0,0.00021917,2]
[349562385,1737295869562,-500.0,0.00021917,2]
[349562386,1737295869571,-979.7,0.00021917,2]
[349562387,1737295869580,-156.3745293,0.00021917,2]
[349562388,1737295869589,-500.0,0.00021917,2]
[349562389,1737295869600,-648.95,0.00021917,2]
[349562390,1737295869610,-824.661231,0.00021917,2]
[349562391,1737295869620,-500.0,0.00021917,2]
[349562392,1737295869632,-500.0,0.00021917,2]
[349562393,1737295869642,-463.31505,0.00021917,2]
[349562394,1737295869651,-500.0,0.00021917,2]
[349562395,1737295869660,-500.0,0.00021917,2]
[349562396,1737295869669,-500.0,0.00021917,2]
[349562397,1737295869678,-593.71,0.00021917,2]
[349562398,1737295869688,-500.0,0.00021917,2]
[349562399,1737295869698,-500.0,0.00021917,2]
[349562400,1737295869707,-500.0,0.00021917,2]
[349562401,1737295869717,-562.68,0.00021917,2]
[349562402,1737295869727,-500.0,0.00021917,2]
[349562403,1737295869736,-500.0,0.00021917,2]
[349562404,1737295869745,-500.0,0.00021917,2]
[349562405,1737295869754,-500.0,0.00021917,2]
[349562406,1737295869763,-500.0,0.00021917,2]
[349562407,1737295869773,-500.0,0.00021917,2]
[349562408,1737295869784,-500.0,0.00021917,2]
[349562409,1737295869794,-500.0,0.00021917,2]
[349562410,1737295869803,-598.03,0.00021917,2]
[349562411,1737295869812,-500.0,0.00021917,2]
[349562412,1737295869823,-500.0,0.00021917,2]
[349562413,1737295869834,-500.0,0.00021917,2]
[349562414,1737295869843,-500.0,0.00021917,2]
[349562415,1737295869852,-500.0,0.00021917,2]
[349562416,1737295869863,-500.0,0.00021917,2]
[349562417,1737295869872,-500.0,0.00021917,2]
[349562418,1737295869882,-291.84676736,0.00021917,2]
[349562419,1737295869891,-601.44,0.00021917,2]
[349562420,1737295869901,-500.0,0.00021917,2]
[349562421,1737295869910,-500.0,0.00021917,2]
[349562422,1737295869920,-525.22,0.00021917,2]
[349562423,1737295869929,-500.0,0.00021917,2]
[349562424,1737295869939,-500.0,0.00021917,2]
[349562425,1737295869948,-160.97314731,0.00021917,2]
[349562426,1737295869957,-500.0,0.00021917,2]
[349562427,1737295869967,-500.0,0.00021917,2]
[349562428,1737295869976,-500.0,0.00021917,2]
[349562429,1737295869985,-500.0,0.00021917,2]
[349562430,1737295869995,-500.0,0.00021917,2]
[349562431,1737295870004,-500.0,0.00021917,2]
[349562432,1737295870012,-500.0,0.00021917,2]
[349562433,1737295870022,-500.0,0.00021917,2]
[349562434,1737295870031,-500.0,0.00021917,2]
[349562435,1737295870041,-624.0,0.00021917,2]
[349562436,1737295870051,-734.71,0.00021917,2]
[349562437,1737295870060,-636.09,0.00021917,2]
[349562438,1737295870069,-738.52,0.00021917,2]
[349562439,1737295870078,-500.0,0.00021917,2]
[349562440,1737295870088,-500.0,0.00021917,2]
[349562441,1737295870099,-684.88,0.00021917,2]
[349562442,1737295870109,-500.0,0.00021917,2]
[349562443,1737295870119,-1247.32,0.00021917,2]
[349562444,1737295870130,-500.0,0.00021917,2]
[349562445,1737295870140,-500.0,0.00021917,2]
[349562446,1737295870150,-986.9,0.00021917,2]
[349562447,1737295870159,-2869.51,0.00021917,2]
[349562448,1737295870169,-500.0,0.00021917,2]
[349562449,1737295870178,-500.0,0.00021917,2]
[349562450,1737295870187,-500.0,0.00021917,2]
[349562451,1737295870196,-511.89,0.00021917,2]
[349562452,1737295870208,-547.55,0.00021917,2]
[349562453,1737295870218,-500.0,0.00021917,2]
[349562454,1737295870230,-500.0,0.00021917,2]
[349562455,1737295870240,-500.0,0.00021917,2]
[349562456,1737295870249,-500.0,0.00021917,2]
[349562457,1737295870258,-980.39,0.00021917,2]
[349562458,1737295870269,-1901.43,0.00021917,2]
[349562459,1737295870280,-574.45,0.00021917,2]
[349562460,1737295870289,-1217.08,0.00021917,2]
[349562461,1737295870299,-500.0,0.00021917,2]
[349562462,1737295870308,-500.0,0.00021917,2]
[349562463,1737295870318,-3718.9,0.00021917,2]
[349562464,1737295870327,-1772.87,0.00021917,2]
[349562465,1737295870337,-1895.82,0.00021917,2]
[349562466,1737295870347,-907.58,0.00021917,2]
[349562467,1737295870356,-500.0,0.00021917,2]
[349562468,1737295870365,-962.1,0.00021917,2]
[349562469,1737295870375,-611.5,0.00021917,2]
[349562470,1737295870384,-1081.13,0.00021917,2]
[349562471,1737295870394,-615.07,0.00021917,2]
[349562472,1737295870404,-1824.47,0.00021917,2]
[349562473,1737295870413,-1128.83,0.00021917,2]
[349562474,1737295870423,-1000.0,0.00021917,3]
[349562475,1737295870433,-580.01429147,0.00021917,3]
[349562476,1737295870443,-1134.46,0.00021917,2]
[349562477,1737295870452,-779.59,0.00021917,2]
[349562478,1737295870462,-1057.43,0.00021917,2]
[349562479,1737295870471,-2511.83,0.00021917,2]
[349562480,1737295870481,-808.36,0.00021917,2]
[349562481,1737295870490,-500.0,0.00021917,2]
[349562482,1737295870500,-950.06,0.00021917,2]
[349562483,1737295870508,-1505.94,0.00021917,2]
[349562484,1737295870519,-500.0,0.00021917,2]
[349562485,1737295870532,-500.0,0.00021917,2]
[349562486,1737295870541,-1601.1,0.00021917,2]
[349562487,1737295870550,-1392.17,0.00021917,2]
[349562488,1737295870560,-1936.96,0.00021917,2]
[349562489,1737295870569,-913.05,0.00021917,2]
[349562490,1737295870579,-2265.47,0.00021917,2]
[349562491,1737295870588,-724.33,0.00021917,2]
[349562492,1737295870598,-1982.14,0.00021917,2]
[349562493,1737295870607,-500.0,0.00021917,2]
[349562494,1737295870616,-553.34,0.00021917,2]
[349562495,1737295870626,-3330.96,0.00021917,2]
[349562496,1737295870637,-500.0,0.00021917,2]
[349562497,1737295870646,-771.48,0.00021917,2]
[349562498,1737295870657,-779.34,0.00021917,2]
[349562499,1737295870667,-1043.03,0.00021917,2]
[349562500,1737295870677,-500.0,0.00021917,2]
[349562501,1737295870686,-1370.63,0.00021917,2]
[349562502,1737295870696,-564.65,0.00021917,2]
[349562503,1737295870705,-3709.46,0.00021917,2]
[349562504,1737295870715,-502.23,0.00021917,2]
[349562505,1737295870725,-500.0,0.00021917,2]
[349562506,1737295870735,-1640.85,0.00021917,2]
[349562507,1737295870744,-500.0,0.00021917,2]
[349562508,1737295870753,-544.68,0.00021917,2]
[349562509,1737295870763,-1350.5,0.00021917,2]
[349562510,1737295870774,-797.87,0.00021917,2]
[349562511,1737295870786,-3651.14,0.00021917,2]
[349562512,1737295870797,-4438.25,0.00021917,2]
[349562513,1737295870807,-500.0,0.00021917,2]
[349562514,1737295870817,-280.2060941,0.00021917,2]
[349562515,1737295870826,-500.0,0.00021917,2]
[349562516,1737295870839,-759.5,0.00021917,2]
[349562517,1737295870848,-500.0,0.00021917,2]
[349562518,1737295870858,-2450.03,0.00021917,2]
[349562519,1737295870869,-892.16,0.00021917,2]
[349562520,1737295870878,-500.0,0.00021917,2]
[349562521,1737295870888,-501.18,0.00021917,2]
[349562522,1737295870897,-700.04,0.00021917,2]
[349562523,1737295870908,-723.03,0.00021917,2]
[349562524,1737295870918,-530.67,0.00021917,2]
[349562525,1737295870927,-2025.11,0.00021917,2]
[349562526,1737295870936,-864.92,0.00021917,2]
[349562527,1737295870945,-759.68,0.00021917,2]
[349562528,1737295870954,-1553.11,0.00021917,2]
[349562529,1737295870963,-6815.31,0.00021917,2]
[349562530,1737295870972,-586.46,0.00021917,2]
[349562531,1737295870981,-939.47,0.00021917,2]
[349562532,1737295870992,-1310.9,0.00021917,2]
[349562533,1737295871002,-1177.09,0.00021917,2]
[349562534,1737295871012,-500.0,0.00021917,2]
[349562535,1737295871021,-1155.77,0.00021917,2]
[349562536,1737295871033,-500.0,0.00021917,2]
[349562537,1737295871042,-500.0,0.00021917,2]
[349562538,1737295871051,-2403.83,0.00021917,2]
[349562539,1737295871060,-866.62,0.00021917,2]
[349562540,1737295871069,-2276.55,0.00021917,2]
[349562541,1737295871079,-1028.52,0.00021917,2]
[349562542,1737295871088,-633.36,0.00021917,2]
[349562543,1737295871097,-727.12,0.00021917,2]
[349562544,1737295871106,-1083.84,0.00021917,2]
[349562545,1737295871116,-697.52,0.00021917,2]
[349562546,1737295871126,-500.0,0.00021917,2]
[349562547,1737295871137,-500.0,0.00021917,2]
[349562548,1737295871147,-1671.75,0.00021917,2]
[349562549,1737295871156,-872.62,0.00021917,2]
[349562550,1737295871167,-500.0,0.00021917,2]
[349562551,1737295871177,-1470.37,0.00021917,2]
[349562552,1737295871187,-2113.17,0.00021917,2]
[349562553,1737295871195,-669.95,0.00021917,2]
[349562554,1737295871204,-608.59,0.00021917,2]
[349562555,1737295871214,-6374.84,0.00021917,2]
[349562556,1737295871225,-595.58,0.00021917,2]
[349562557,1737295871234,-699.23,0.00021917,2]
[349562558,1737295871243,-538.06,0.00021917,2]
[349562559,1737295871252,-675.11,0.00021917,2]
[349562560,1737295871261,-946.85,0.00021917,2]
[349562561,1737295871271,-500.0,0.00021917,2]
[349562562,1737295871283,-535.65,0.00021917,2]
[349562563,1737295871292,-500.0,0.00021917,2]
[349562564,1737295871303,-798.35,0.00021917,2]
[349562565,1737295871312,-1273.57,0.00021917,2]
[349562566,1737295871321,-472.27246413,0.00021917,2]
[349562567,1737295871332,-4000.0,0.00021918,2]
[349562568,1737295871342,-150.0,0.00021918,2]
[349562569,1737295871352,-150.0,0.00021918,2]
[349562570,1737295871361,-501.28,0.0002197,2]
[349562571,1737295871371,-500.0,0.0002197,2]
[349562572,1737295871382,-18265.6111419,0.00021975,2]
[349562573,1737295871393,-17563.363244,0.00021985,2]
[349562574,1737295871403,-6786.3239653,0.00021985,2]
[349562575,1737295871414,-150.0,0.00021989,2]
[349562576,1737295871423,-150.0,0.00021989,2]
[349562577,1737295871435,-150.0,0.00021989,2]
[349562578,1737295871446,-936639.94145799,0.0002199,14]
[349562579,1737295871456,-205.0,0.0002199,2]
[349562580,1737295871465,-205.0,0.0002199,2]
[349562581,1737295871475,-205.0,0.0002199,2]
[349562582,1737295871495,-205.0,0.0002199,2]
[349562583,1737295871504,-205.0,0.0002199,2]
[349562584,1737295871513,-205.0,0.0002199,2]
[349562585,1737295871523,-205.0,0.0002199,2]
[349562586,1737295871537,-216.0,0.0002199,2]